bitfinex/quotes_BTCUSD_20250607
["timestamp","ask_amount","ask_price","bid_price","bid_amount"]
[1749274219421,0.2191308,104960.0,104950.0,0.91293226]
[1749274224639,0.20960355,104960.0,104950.0,0.91293226]
[1749274227840,0.20007621,104960.0,104950.0,0.91293226]
[1749274230633,0.20007621,104960.0,104950.0,0.53409226]
[1749274230849,4.06575721,104960.0,104950.0,0.72136533]
[1749274231066,4.08215721,104960.0,104950.0,0.34352533]
[1749274231281,4.08215721,104960.0,104950.0,0.62696]
[1749274239045,4.08215721,104960.0,104950.0,0.62596]
[1749274244558,4.06575721,104960.0,104950.0,0.62596]
[1749274248062,4.05015721,104960.0,104950.0,0.62596]
[1749274254913,4.05015721,104960.0,104950.0,0.64216]
[1749274257278,4.05015721,104960.0,104950.0,0.62596]
[1749274257650,0.00952716,104960.0,104950.0,1.50304821]
[1749274257889,4.06921108,104960.0,104950.0,0.94422641]
[1749274258109,4.06921108,104960.0,104950.0,0.95375466]
[1749274258339,4.06921108,104960.0,104950.0,0.95375475]
[1749274258756,4.06921108,104960.0,104950.0,0.94422641]
[1749274259414,4.05968419,104960.0,104950.0,0.94422641]
[1749274259628,4.05015703,104960.0,104950.0,0.94422641]
[1749274261515,4.04062978,104960.0,104950.0,0.94422641]
[1749274261909,4.04062978,104960.0,104950.0,0.75365948]
[1749274267869,4.04062978,104960.0,104950.0,0.79172853]
[1749274269159,4.04062978,104960.0,104950.0,0.77632853]
[1749274269369,4.04062978,104960.0,104950.0,0.73825948]
[1749274277417,4.04062978,104960.0,104950.0,0.36041948]
[1749274277623,4.04062978,104960.0,104950.0,0.73761948]
[1749274296856,4.04062978,104960.0,104950.0,0.33616]
[1749274297071,4.07232978,104960.0,104950.0,0.62496]
[1749274298385,4.07232978,104960.0,104950.0,0.62396]
[1749274298591,4.07332978,104960.0,104950.0,0.62396]
[1749274302881,4.07332978,104960.0,104950.0,0.24712]
[1749274303096,4.07332978,104960.0,104950.0,0.624]
[1749274305057,0.22324878,104960.0,104950.0,0.624]
[1749274305287,4.07332978,104960.0,104950.0,0.624]
[1749274313305,0.22324878,104960.0,104950.0,0.624]
[1749274313502,4.07332978,104960.0,104950.0,0.624]
[1749274320072,4.05772978,104960.0,104950.0,0.624]
[1749274324186,4.04162978,104960.0,104950.0,0.624]
[1749274324564,0.19154878,104960.0,104950.0,0.624]
[1749274324893,4.38401112,104960.0,104950.0,0.624]
[1749274325034,4.38162978,104960.0,104950.0,0.624]
[1749274333978,0.53154878,104960.0,104950.0,0.624]
[1749274334182,4.38162978,104960.0,104950.0,0.624]
[1749274336245,0.53154878,104960.0,104950.0,0.624]
[1749274336482,4.38162978,104960.0,104950.0,0.624]
[1749274338260,0.53154878,104960.0,104950.0,0.624]
[1749274338488,4.38162978,104960.0,104950.0,0.624]
[1749274341888,4.38162978,104960.0,104950.0,0.37688]
[1749274343510,0.53154878,104960.0,104950.0,0.37688]
[1749274343721,4.38162978,104960.0,104950.0,0.37688]
[1749274345579,4.38162978,104960.0,104950.0,0.62404]
[1749274354440,4.38162978,104960.0,104950.0,0.63743816]
[1749274354798,4.38162978,104960.0,104950.0,0.63073908]
[1749274355059,4.38162978,104960.0,104950.0,0.63743813]
[1749274355247,4.38162978,104960.0,104950.0,0.63073908]
[1749274355965,0.53154878,104960.0,104950.0,0.63073908]
[1749274356176,4.38162978,104960.0,104950.0,0.63073908]
[1749274358508,0.53154878,104960.0,104950.0,0.63073908]
[1749274358691,4.38162978,104960.0,104950.0,0.63073908]
[1749274359276,4.38162978,104960.0,104950.0,0.64723908]
[1749274360536,0.53154878,104960.0,104950.0,0.64723908]
[1749274360737,4.38162978,104960.0,104950.0,0.64723908]
[1749274362709,0.53154878,104960.0,104950.0,0.64723908]
[1749274363067,4.38162978,104960.0,104950.0,0.64723908]
[1749274366889,0.53154878,104960.0,104950.0,0.64723908]
[1749274367057,4.38162978,104960.0,104950.0,0.64723908]
[1749274367489,4.38162978,104960.0,104950.0,0.27035908]
[1749274367730,4.38162978,104960.0,104950.0,0.62997908]
[1749274367927,0.53154878,104960.0,104950.0,0.62997908]
[1749274368293,4.38162978,104960.0,104950.0,0.62997908]
[1749274370761,4.38162978,104960.0,104950.0,0.64557908]
[1749274375365,4.38162978,104960.0,104950.0,0.39841908]
[1749274375806,0.53154878,104960.0,104950.0,0.39841908]
[1749274376021,4.38162978,104960.0,104950.0,0.39841908]
[1749274381078,0.53154878,104960.0,104950.0,0.39841908]
[1749274381313,4.38162978,104960.0,104950.0,0.39841908]
[1749274382699,4.38162978,104960.0,104950.0,0.41461908]
[1749274385035,4.38162978,104960.0,104950.0,0.66177908]
[1749274387354,4.38162978,104960.0,104950.0,0.66037908]
[1749274387564,4.38162978,104960.0,104950.0,0.64417908]
[1749274389407,4.38162978,104960.0,104950.0,0.34013908]
[1749274389610,4.38162978,104960.0,104950.0,0.62857908]
[1749274392314,0.53154878,104960.0,104950.0,0.62857908]
[1749274392492,4.38162978,104960.0,104950.0,0.62857908]
[1749274401106,4.38162978,104960.0,104950.0,0.64357908]
[1749274407077,0.53154878,104960.0,104950.0,0.64357908]
[1749274407281,4.38162978,104960.0,104950.0,0.64357908]
[1749274407485,4.38162978,104960.0,104950.0,0.39641908]
[1749274408097,0.53154878,104960.0,104950.0,0.39641908]
[1749274408323,4.38162978,104960.0,104950.0,0.39641908]
[1749274408725,4.38162978,104960.0,104950.0,0.49157908]
[1749274410184,0.53154878,104960.0,104950.0,0.49157908]
[1749274410321,4.38162978,104960.0,104950.0,0.49157908]
[1749274410973,4.38162978,104960.0,104950.0,0.73873908]
[1749274411388,4.38162978,104960.0,104950.0,0.75493908]
[1749274418910,4.38162978,104960.0,104950.0,0.79300505]
[1749274419103,4.38162978,104960.0,104950.0,0.75493908]
[1749274419833,4.04162978,104960.0,104950.0,0.75493908]
[1749274420450,0.19154878,104960.0,104950.0,0.75493908]
[1749274420878,0.19154878,104960.0,104950.0,0.79300505]
[1749274421508,0.19154878,104960.0,104950.0,0.75493908]
[1749274427812,0.19154878,104960.0,104950.0,0.76446742]
[1749274428024,0.19154878,104960.0,104950.0,0.79300505]
[1749274429744,0.19154878,104960.0,104950.0,0.75493908]
[1749274432528,0.20107603,104960.0,104950.0,1.63879335]
[1749274432733,0.20107603,104960.0,104950.0,1.08949971]
[1749274433542,0.20107603,104960.0,104950.0,1.0894998]
[1749274434755,0.19154878,104960.0,104950.0,0.88940453]
[1749274439668,0.19154878,104960.0,104950.0,0.89894912]
[1749274440293,0.19154878,104960.0,104950.0,0.88940453]
[1749274442744,0.19154878,104960.0,104950.0,1.0894998]
[1749274443779,0.19154878,104960.0,104950.0,1.08936705]
[1749274443937,0.19154878,104960.0,104950.0,1.0894998]
[1749274444139,0.19154878,104960.0,104950.0,1.07997146]
[1749274444905,0.19154878,104960.0,104950.0,1.0894998]
[1749274445050,0.19154878,104960.0,104950.0,1.09902805]
[1749274445431,0.19154878,104960.0,104950.0,1.0894998]
[1749274445634,0.19154878,104960.0,104950.0,1.09902805]
[1749274446333,0.19154878,104960.0,104950.0,1.0894998]
[1749274446463,0.19154878,104960.0,104950.0,1.09902805]
[1749274446660,0.19154878,104960.0,104950.0,1.0894998]
[1749274447727,0.19154878,104960.0,104950.0,1.09902805]
[1749274447880,0.19154878,104960.0,104950.0,1.10845038]
[1749274450001,0.19154878,104960.0,104950.0,1.08939379]
[1749274450163,0.19154878,104960.0,104950.0,1.09892213]
[1749274450465,0.19154878,104960.0,104950.0,1.15602008]
[1749274450837,0.19154878,104960.0,104950.0,1.13706941]
[1749274451571,0.19154878,104960.0,104950.0,0.62678248]
[1749274451778,0.19154878,104960.0,104950.0,0.56968453]
[1749274451779,4.04162978,104960.0,104950.0,0.56968453]
[1749274451978,4.07262978,104960.0,104950.0,0.34761908]
[1749274452170,4.07262978,104960.0,104950.0,0.72353908]
[1749274453243,4.07014978,104960.0,104950.0,0.72353908]
[1749274458475,3.97498978,104960.0,104950.0,0.62837908]
[1749274459296,3.95948978,104960.0,104950.0,0.62837908]
[1749274460262,3.97608978,104960.0,104950.0,0.62841908]
[1749274468505,3.97608978,104960.0,104950.0,0.34005908]
[1749274468724,3.97608978,104960.0,104950.0,0.62841908]
[1749274472388,3.95948978,104960.0,104950.0,0.62841908]
[1749274482700,3.96058978,104960.0,104950.0,0.62841908]
[1749274485920,3.96058978,104960.0,104950.0,0.25245908]
[1749274486149,3.96058978,104960.0,104950.0,0.62841908]
[1749274490443,3.94398978,104960.0,104950.0,0.62841908]
[1749274493656,3.96008978,104960.0,104950.0,0.62841908]
[1749274494374,3.94398978,104960.0,104950.0,0.62841908]
[1749274510089,3.96018978,104960.0,104950.0,0.62841908]
[1749274510793,3.94398978,104960.0,104950.0,0.62841908]
[1749274515639,3.94398978,104960.0,104950.0,0.62837908]
[1749274516122,3.94398978,104960.0,104950.0,0.62308]
[1749274521270,0.20962316,104950.0,104940.0,0.06808597]
[1749274521471,0.20962316,104950.0,104940.0,0.40284597]
[1749274522502,0.20962316,104950.0,104940.0,0.69216597]
[1749274528530,0.20962316,104950.0,104940.0,0.65518]
[1749274547865,4.05970416,104950.0,104940.0,0.62408]
[1749274548605,4.05970416,104950.0,104940.0,0.64058]
[1749274551944,4.05970416,104950.0,104940.0,0.64058]
[1749274556188,4.05970416,104950.0,104940.0,0.6691551]
[1749274567509,4.05970416,104950.0,104940.0,0.66915888]
[1749274576524,4.05970416,104950.0,104940.0,0.70725901]
[1749274587295,4.05722416,104950.0,104940.0,0.70725901]
[1749274588698,4.05722416,104950.0,104940.0,0.66915888]
[1749274589004,4.05722416,104950.0,104940.0,0.65265888]
[1749274589141,4.05722416,104950.0,104940.0,0.36433888]
[1749274589338,4.07312416,104950.0,104940.0,0.65257888]
[1749274591685,4.05722416,104950.0,104940.0,0.65257888]
[1749274599520,4.05722416,104950.0,104940.0,0.65258368]
[1749274600080,4.05722416,104950.0,104940.0,0.66758368]
[1749274608623,4.05722416,104950.0,104940.0,0.65258368]
[1749274611831,4.05722416,104950.0,104940.0,0.66768368]
[1749274617512,4.05722416,104950.0,104940.0,0.70578381]
[1749274617920,4.05722416,104950.0,104940.0,0.66768368]
[1749274618303,4.05722416,104950.0,104940.0,0.70578381]
[1749274618513,4.05722416,104950.0,104940.0,0.66768368]
[1749274619508,4.05722416,104950.0,104940.0,0.70578381]
[1749274619841,4.05722416,104950.0,104940.0,0.66768368]
[1749274619976,4.05722416,104950.0,104940.0,0.70578381]
[1749274621046,4.05722416,104950.0,104940.0,0.66768368]
[1749274627684,4.05722416,104950.0,104940.0,0.68278368]
[1749274627841,4.05722416,104950.0,104940.0,0.72088381]
[1749274632573,4.05722416,104950.0,104940.0,0.69230013]
[1749274633141,4.05722416,104950.0,104940.0,0.72087343]
[1749274633306,4.05722416,104950.0,104940.0,0.69230013]
[1749274633509,4.05722416,104950.0,104940.0,0.7208736]
[1749274634715,4.05722416,104950.0,104940.0,0.72087062]
[1749274642515,0.01657623,104950.0,104940.0,1.56669407]
[1749274642723,0.02610448,104950.0,104940.0,1.58569199]
[1749274642934,0.03563282,104950.0,104940.0,1.58569199]
[1749274643136,0.03563282,104950.0,104940.0,1.62377417]
[1749274645000,0.03563282,104950.0,104940.0,1.61424546]
[1749274645625,0.22619975,104950.0,104940.0,1.61424546]
[1749274645853,0.21915168,104950.0,104940.0,1.61424546]
[1749274647411,0.21915168,104950.0,104940.0,1.60471657]
[1749274647616,0.20962352,104950.0,104940.0,1.05542311]
[1749274648003,0.20009527,104950.0,104940.0,1.05542311]
[1749274648204,0.20009527,104950.0,104940.0,1.06495218]
[1749274648432,0.20009527,104950.0,104940.0,1.07448116]
[1749274648629,0.20009527,104950.0,104940.0,1.05542311]
[1749274649506,0.20009527,104950.0,104940.0,0.85530886]
[1749274650126,0.19056693,104950.0,104940.0,0.85530886]
[1749274652493,0.19056693,104950.0,104940.0,0.84577961]
[1749274652715,0.19056693,104950.0,104940.0,0.78868166]
[1749274653355,0.19056693,104950.0,104940.0,0.49784166]
[1749274654054,0.19056693,104950.0,104940.0,0.50737091]
[1749274654225,0.19056693,104950.0,104940.0,0.51690007]
[1749274654557,0.19056693,104950.0,104940.0,0.79553091]
[1749274655350,0.19056693,104950.0,104940.0,0.84309961]
[1749274655539,0.19056693,104950.0,104940.0,0.78600166]
[1749274655740,0.19056693,104950.0,104940.0,0.84309961]
[1749274661323,0.19056693,104950.0,104940.0,0.78600166]
[1749274662132,0.19056693,104950.0,104940.0,0.84309961]
[1749274662495,0.19056693,104950.0,104940.0,0.78600166]
[1749274665365,0.19056693,104950.0,104940.0,0.84309961]
[1749274669390,0.19056693,104950.0,104940.0,1.0336847]
[1749274671800,0.19056693,104950.0,104940.0,0.84309961]
[1749274682800,0.19056693,104950.0,104940.0,1.39239325]
[1749274683333,0.19056693,104950.0,104940.0,1.4019225]
[1749274684814,0.19056693,104950.0,104940.0,1.39239325]
[1749274687639,0.19056693,104950.0,104940.0,0.84309961]
[1749274688349,0.19056693,104950.0,104940.0,0.55493961]
[1749274688493,0.19056693,104950.0,104940.0,0.84305961]
[1749274693542,0.19056693,104950.0,104940.0,0.45231961]
[1749274693758,0.19056693,104950.0,104940.0,0.81425961]
[1749274694445,0.19056693,104950.0,104940.0,0.43873961]
[1749274694675,4.07234793,104950.0,104940.0,0.68936103]
[1749274697725,4.07234793,104950.0,104940.0,0.65127885]
[1749274697943,4.07234793,104950.0,104940.0,0.6893498]
[1749274698467,4.05614793,104950.0,104940.0,0.6893498]
[1749274698657,4.05614793,104950.0,104940.0,0.65126762]
[1749274699533,4.04064793,104950.0,104940.0,0.65126762]
[1749274699743,4.04064793,104950.0,104940.0,0.62268]
[1749274700712,4.04064793,104950.0,104940.0,0.65126372]
[1749274709733,4.07124793,104950.0,104940.0,0.65126372]
[1749274710267,4.05624793,104950.0,104940.0,0.65126372]
[1749274710951,4.05624793,104950.0,104940.0,0.68937535]
[1749274711553,4.05624793,104950.0,104940.0,0.65126372]
[1749274712273,4.04064793,104950.0,104940.0,0.65126372]
[1749274717470,4.04064793,104950.0,104940.0,0.68937535]
[1749274724291,4.04064793,104950.0,104940.0,0.70567535]
[1749274725401,4.04064793,104950.0,104940.0,0.68937535]
[1749274729090,4.04064793,104950.0,104940.0,0.70497535]
[1749274733054,4.04064793,104950.0,104940.0,0.91126044]
[1749274733429,4.04064793,104950.0,104940.0,0.72067535]
[1749274733691,0.19056693,104950.0,104940.0,0.72067535]
[1749274741568,0.19056693,104950.0,104940.0,0.72068588]
[1749274744959,0.19056693,104950.0,104940.0,0.70498588]
[1749274747154,4.04064793,104950.0,104940.0,0.70498588]
[1749274753815,4.04064793,104950.0,104940.0,0.68938588]
[1749274760563,4.04064793,104950.0,104940.0,0.70598588]
[1749274762938,4.04064793,104950.0,104940.0,0.33046588]
[1749274763142,4.07224793,104950.0,104940.0,0.65131425]
[1749274763277,4.07224793,104950.0,104940.0,0.36323425]
[1749274763623,4.07224793,104950.0,104940.0,0.65131425]
[1749274775788,4.04064793,104950.0,104940.0,0.65131425]
[1749274776929,4.04064793,104950.0,104940.0,0.66771425]
[1749274779179,4.04064793,104950.0,104940.0,0.68351425]
[1749274779417,4.04064793,104950.0,104940.0,0.72162588]
[1749274782554,4.04064793,104950.0,104940.0,0.70582588]
[1749274782797,4.04064793,104950.0,104940.0,0.66771425]
[1749274784497,4.04064793,104950.0,104940.0,0.65131425]
[1749274792712,4.04064793,104950.0,104940.0,0.72001825]
[1749274799205,4.04064793,104950.0,104940.0,0.72001415]
[1749274800710,4.04064793,104950.0,104940.0,0.70491415]
[1749274801702,4.04064793,104950.0,104940.0,0.66680252]
[1749274802035,4.04064793,104950.0,104940.0,0.70491415]
[1749274802596,4.04064793,104950.0,104940.0,0.66680252]
[1749274804889,4.04064793,104950.0,104940.0,0.67633163]
[1749274805090,4.04064793,104950.0,104940.0,0.70491599]
[1749274809259,4.04064793,104950.0,104940.0,0.70699599]
[1749274810092,4.04064793,104950.0,104940.0,0.32935599]
[1749274810279,4.04064793,104950.0,104940.0,0.70699599]
[1749274812861,4.04064793,104950.0,104940.0,0.70691599]
[1749274814928,4.04064793,104950.0,104940.0,0.32935599]
[1749274815228,4.04064793,104950.0,104940.0,0.70687599]
[1749274828724,4.04064793,104950.0,104940.0,0.72197599]
[1749274831042,4.04064793,104950.0,104940.0,0.70687599]
[1749274831805,4.04064793,104950.0,104940.0,0.67829163]
[1749274832893,4.04064793,104950.0,104940.0,0.70688781]
[1749274845684,4.04064793,104950.0,104940.0,0.72338781]
[1749274846015,4.04064793,104950.0,104940.0,0.69479163]
[1749274848139,4.04064793,104950.0,104940.0,0.67829163]
[1749274849131,4.04064793,104950.0,104940.0,0.70689143]
[1749274849331,4.04064793,104950.0,104940.0,0.70549143]
[1749274856879,4.04064793,104950.0,104940.0,0.7054913]
[1749274859934,4.04064793,104950.0,104940.0,0.7218913]
[1749274860157,4.04064793,104950.0,104940.0,0.7054913]
[1749274864084,4.04064793,104950.0,104940.0,0.7214913]
[1749274864307,4.04064793,104950.0,104940.0,0.69289163]
[1749274865170,0.00952798,104950.0,104940.0,1.5482278]
[1749274865388,0.02858439,104950.0,104940.0,1.61492404]
[1749274865816,0.0381121,104950.0,104940.0,1.61493459]
[1749274866029,0.21915132,104950.0,104940.0,1.5958769]
[1749274866915,0.21915132,104950.0,104940.0,1.60540588]
[1749274867369,0.20962334,104950.0,104940.0,1.5958769]
[1749274867798,0.20962334,104950.0,104940.0,1.60540588]
[1749274868782,0.20962334,104950.0,104940.0,1.5958769]
[1749274868992,0.20009527,104950.0,104940.0,1.5958769]
[1749274869370,0.20009527,104950.0,104940.0,1.59587708]
[1749274869580,0.20009527,104950.0,104940.0,1.60540624]
[1749274869793,0.20009527,104950.0,104940.0,1.61493531]
[1749274870251,0.20009527,104950.0,104940.0,1.63399318]
[1749274871091,0.20009527,104950.0,104940.0,1.62446429]
[1749274871585,0.20009527,104950.0,104940.0,1.61493531]
[1749274871786,0.20009527,104950.0,104940.0,1.62446429]
[1749274872232,0.20009527,104950.0,104940.0,1.61493531]
[1749274872455,0.20009527,104950.0,104940.0,1.62446429]
[1749274873092,0.20009527,104950.0,104940.0,1.61493531]
[1749274873293,0.20009527,104950.0,104940.0,1.06564167]
[1749274875218,0.20009527,104950.0,104940.0,1.0561126]
[1749274875652,0.20009527,104950.0,104940.0,1.07517065]
[1749274877053,0.20009527,104950.0,104940.0,1.08469954]
[1749274877813,0.20009527,104950.0,104940.0,1.63399318]
[1749274878031,0.20009527,104950.0,104940.0,1.62446429]
[1749274878252,0.20009527,104950.0,104940.0,1.0561126]
[1749274879234,0.19056693,104950.0,104940.0,1.04658344]
[1749274880708,0.19056693,104950.0,104940.0,1.03705419]
[1749274881373,0.19056693,104950.0,104940.0,0.97988675]
[1749274881936,0.19056693,104950.0,104940.0,0.989416]
[1749274882174,0.19056693,104950.0,104940.0,0.97988675]
[1749274883430,0.19056693,104950.0,104940.0,0.989416]
[1749274883608,0.19056693,104950.0,104940.0,1.04658344]
[1749274885396,0.19056693,104950.0,104940.0,1.03705419]
[1749274886473,0.19056693,104950.0,104940.0,1.04658344]
[1749274886825,0.19056693,104950.0,104940.0,1.03705419]
[1749274888249,0.19056693,104950.0,104940.0,0.8464691]
[1749274888737,0.19056693,104950.0,104940.0,0.78930166]
[1749274894665,0.19056693,104950.0,104940.0,0.8464691]
[1749274894880,0.19056693,104950.0,104940.0,0.78930166]
[1749274897001,0.19056693,104950.0,104940.0,0.8464691]
[1749274899450,0.20009527,104950.0,104940.0,1.03705419]
[1749274899634,0.20009527,104950.0,104940.0,1.58634783]
[1749274899833,0.20009527,104950.0,104940.0,1.03705419]
[1749274905941,0.20009527,104950.0,104940.0,1.04658344]
[1749274906726,0.20009527,104950.0,104940.0,1.03705419]
[1749274907335,0.20009527,104950.0,104940.0,1.04658344]
[1749274907477,0.20009527,104950.0,104940.0,1.04658326]
[1749274907683,0.20009527,104950.0,104940.0,1.04658344]
[1749274908783,0.20009527,104950.0,104940.0,1.03705419]
[1749274908958,0.20009527,104950.0,104940.0,1.04658335]
[1749274909158,0.20009527,104950.0,104940.0,1.04658344]
[1749274909366,0.20009527,104950.0,104940.0,1.0561126]
[1749274912052,0.01905641,104950.0,104940.0,1.60540624]
[1749274912277,0.01905641,104950.0,104940.0,1.61493522]
[1749274912744,0.01905641,104950.0,104940.0,1.61493531]
[1749274912987,0.20962334,104950.0,104940.0,1.61493531]
[1749274913229,0.20962334,104950.0,104940.0,1.62446429]
[1749274913662,0.20962334,104950.0,104940.0,1.62314429]
[1749274913928,0.20962334,104950.0,104940.0,1.60408624]
[1749274914176,0.20962334,104950.0,104940.0,1.62314411]
[1749274914415,0.01905641,104950.0,104940.0,1.61361522]
[1749274914630,0.20962334,104950.0,104940.0,1.62314429]
[1749274915013,0.20962334,104950.0,104940.0,1.07385065]
[1749274915551,0.20962334,104950.0,104940.0,1.06432167]
[1749274915877,0.20962334,104950.0,104940.0,1.0547926]
[1749274916262,0.0095278,104950.0,104940.0,1.62314374]
[1749274916482,0.20960301,104960.0,104950.0,0.21589527]
[1749274916716,0.20960301,104960.0,104950.0,0.41348051]
[1749274917126,0.20960301,104960.0,104950.0,0.4325371]
[1749274917302,0.21913044,104960.0,104950.0,0.42300885]
[1749274917508,0.21913044,104960.0,104950.0,0.4325371]
[1749274917725,0.21913044,104960.0,104950.0,0.44206526]
[1749274918368,0.21913044,104960.0,104950.0,0.45159333]
[1749274918481,0.21913044,104960.0,104950.0,0.44206526]
[1749274918685,0.20960346,104960.0,104950.0,0.44206526]
[1749274919048,0.20960346,104960.0,104950.0,0.4325371]
[1749274919272,0.20960346,104960.0,104950.0,0.44206526]
[1749274919759,0.20960346,104960.0,104950.0,0.3848768]
[1749274920330,0.20960346,104960.0,104950.0,0.3690768]
[1749274920680,0.20960346,104960.0,104950.0,0.4575168]
[1749274920884,0.20960346,104960.0,104950.0,0.43846039]
[1749274921085,0.20960346,104960.0,104950.0,0.4575168]
[1749274923481,0.20960346,104960.0,104950.0,0.46704487]
[1749274923891,0.20960346,104960.0,104950.0,0.48234487]
[1749274924959,0.20960346,104960.0,104950.0,0.46328864]
[1749274925423,0.20960346,104960.0,104950.0,0.4728168]
[1749274926276,0.20960346,104960.0,104950.0,0.47281662]
[1749274926486,0.03810828,104960.0,104950.0,0.47281671]
[1749274926693,0.22865706,104960.0,104950.0,0.47281671]
[1749274927048,0.22865706,104960.0,104950.0,0.4728168]
[1749274927461,0.22865706,104960.0,104950.0,0.48234487]
[1749274927661,0.22865706,104960.0,104950.0,0.49187285]
[1749274927961,0.21913035,104960.0,104950.0,0.48234487]
[1749274928170,0.21913035,104960.0,104950.0,0.48234478]
[1749274928386,0.02858157,104960.0,104950.0,0.4728168]
[1749274928588,0.21913035,104960.0,104950.0,0.46328864]
[1749274928792,0.21913035,104960.0,104950.0,0.4728168]
[1749274929322,0.01905369,104960.0,104950.0,0.48234478]
[1749274929565,0.03810828,104960.0,104950.0,0.48234478]
[1749274930155,0.03810819,104960.0,104950.0,0.48234433]
[1749274930362,0.03810819,104960.0,104950.0,0.47281644]
[1749274930582,0.04763562,104960.0,104950.0,0.47281644]
[1749274931005,0.01925947,104970.0,104960.0,0.20007612]
[1749274931212,0.03810428,104970.0,104960.0,1.23447573]
[1749274931378,0.03810428,104970.0,104960.0,1.29166419]
[1749274931785,0.03810419,104970.0,104960.0,1.29166419]
[1749274931948,0.04763063,104970.0,104960.0,1.29166419]
[1749274932151,0.03057794,104970.0,104960.0,1.29166419]
[1749274932382,0.02105187,104970.0,104960.0,1.29166419]
[1749274933447,0.03057803,104970.0,104960.0,1.29166419]
[1749274933677,0.02105187,104970.0,104960.0,1.29166419]
[1749274933886,0.03057803,104970.0,104960.0,1.29166419]
[1749274934090,0.04010437,104970.0,104960.0,1.29166419]
[1749274934304,0.03057803,104970.0,104960.0,1.29166419]
[1749274934516,0.02105187,104970.0,104960.0,1.23447573]
[1749274934725,0.03057803,104970.0,104960.0,1.23447573]
[1749274935694,0.04010428,104970.0,104960.0,1.23447573]
[1749274935897,0.04963072,104970.0,104960.0,1.23447573]
[1749274937355,0.04010428,104970.0,104960.0,1.23447573]
[1749274937657,0.04963062,104970.0,104960.0,1.23447573]
[1749274938478,0.04963062,104970.0,104960.0,1.26298489]
[1749274938714,0.002,104970.0,104960.0,1.78376937]
[1749274938926,0.02105178,104970.0,104960.0,0.70424491]
[1749274939131,0.0115258,104970.0,104960.0,1.80283219]
[1749274939540,0.0105258,104970.0,104960.0,1.80283219]
[1749274939954,0.0105258,104970.0,104960.0,1.80483219]
[1749274940706,0.0095258,104970.0,104960.0,1.80483219]
[1749274941024,0.01905178,104970.0,104960.0,1.80683219]
[1749274941229,0.02857785,104970.0,104960.0,1.80683219]
[1749274941645,0.02857785,104970.0,104960.0,1.25753855]
[1749274942024,0.02857785,104970.0,104960.0,1.29553488]
[1749274942432,0.01905178,104970.0,104960.0,1.29553488]
[1749274942637,0.02857794,104970.0,104960.0,1.29553488]
[1749274943177,0.01905178,104970.0,104960.0,1.29553488]
[1749274943379,0.02857785,104970.0,104960.0,1.29553488]
[1749274944078,0.02857785,104970.0,104960.0,0.74624124]
[1749274944380,0.02857785,104970.0,104960.0,1.29553488]
[1749274946099,0.03810401,104970.0,104960.0,1.29553488]
[1749274946311,0.02857785,104970.0,104960.0,1.29553488]
[1749274949050,0.03810401,104970.0,104960.0,1.29554961]
[1749274949418,0.01905178,104970.0,104960.0,1.29554961]
[1749274950862,0.02857785,104970.0,104960.0,1.29554961]
[1749274951062,0.02857785,104970.0,104960.0,1.25753855]
[1749274951242,0.0095258,104970.0,104960.0,1.25753855]
[1749274951457,0.01905178,104970.0,104960.0,1.25753855]
[1749274952842,0.0095258,104970.0,104960.0,1.25753855]
[1749274952976,0.0190516,104970.0,104960.0,1.24801085]
[1749274953633,0.0190516,104970.0,104960.0,0.69871721]
[1749274953934,0.0190516,104970.0,104960.0,1.24801085]
[1749274954734,0.00952571,104970.0,104960.0,1.24801085]
[1749274954939,0.01914202,104980.0,104970.0,0.22458303]
[1749274955140,0.01914202,104980.0,104970.0,0.47636269]
[1749274955341,0.01914202,104980.0,104970.0,1.02565633]
[1749274955556,0.02866764,104980.0,104970.0,1.02565633]
[1749274955765,0.02866764,104980.0,104970.0,1.0351824]
[1749274956255,0.01914202,104980.0,104970.0,1.04470838]
[1749274956457,0.01914147,104980.0,104970.0,1.02571709]
[1749274956580,0.01914147,104980.0,104970.0,1.04101709]
[1749274956780,0.01914147,104980.0,104970.0,1.09820555]
[1749274957065,0.01914138,104980.0,104970.0,1.09820555]
[1749274957477,9.123e-05,104980.0,104970.0,1.09820555]
[1749274957600,9.123e-05,104980.0,104970.0,1.06018264]
[1749274958321,0.00961603,104980.0,104970.0,1.06018264]
[1749274958718,9.123e-05,104980.0,104970.0,1.06018264]
[1749274959336,9.123e-05,104980.0,104970.0,1.61147628]
[1749274959588,9.123e-05,104980.0,104970.0,1.63251108]
[1749274959981,9.123e-05,104980.0,104970.0,1.08321744]
[1749274960185,9.123e-05,104980.0,104970.0,1.11184344]
[1749274962346,9.123e-05,104980.0,104970.0,1.66113708]
[1749274962548,9.123e-05,104980.0,104970.0,1.11184344]
[1749274964165,9.123e-05,104980.0,104970.0,1.67567793]
[1749274967530,9.123e-05,104980.0,104970.0,1.98525374]
[1749274968525,9.123e-05,104980.0,104970.0,1.88797467]
[1749274968738,9.123e-05,104980.0,104970.0,1.88597467]
[1749274968940,9.123e-05,104980.0,104970.0,1.89497467]
[1749274969142,9.123e-05,104980.0,104970.0,1.94497467]
[1749274969345,9.123e-05,104980.0,104970.0,2.49426831]
[1749274969554,9.123e-05,104980.0,104970.0,1.94497467]
[1749274969757,9.123e-05,104980.0,104970.0,2.83426831]
[1749274969964,9.123e-05,104980.0,104970.0,2.92954738]
[1749274970572,9.123e-05,104980.0,104970.0,2.38025374]
[1749274970991,9.123e-05,104980.0,104970.0,2.28497467]
[1749274972454,9.123e-05,104980.0,104970.0,2.55945467]
[1749274973443,9.123e-05,104980.0,104970.0,2.63529022]
[1749274973842,9.123e-05,104980.0,104970.0,2.84829022]
[1749274973993,9.123e-05,104980.0,104970.0,2.77245467]
[1749274974498,9.123e-05,104980.0,104970.0,2.8482828]
[1749274974886,9.123e-05,104980.0,104970.0,3.37174831]
[1749274975695,9.123e-05,104980.0,104970.0,3.46702738]
[1749274977472,0.03778206,105010.0,105000.0,1.33283379]
[1749274977673,0.03778206,105010.0,105000.0,2.07097327]
[1749274977674,0.03782992,105010.0,105000.0,2.07097327]
[1749274977860,0.03782992,105010.0,105000.0,2.12782165]
[1749274978069,0.03782992,105010.0,105000.0,2.07097327]
[1749274978711,0.03882992,105010.0,105000.0,1.69173327]
[1749274978922,0.03882992,105010.0,105000.0,2.07089327]
[1749274979136,0.03882992,105010.0,105000.0,1.69473327]
[1749274979339,0.03882992,105010.0,105000.0,2.07389327]
[1749274979778,0.03782992,105010.0,105000.0,2.07389327]
[1749274980008,0.03782992,105010.0,105000.0,2.08341728]
[1749274980770,0.03782992,105010.0,105000.0,3.06519807]
[1749274980997,0.03782992,105010.0,105000.0,3.14099591]
[1749274981202,0.03534992,105010.0,105000.0,3.19299591]
[1749274982013,0.03534992,105010.0,105000.0,3.14299591]
[1749274982212,0.03534992,105010.0,105000.0,3.19299591]
[1749274982953,0.03534992,105010.0,105000.0,3.22160891]
[1749274983154,0.03534992,105010.0,105000.0,2.67098241]
[1749274984099,0.03534992,105010.0,105000.0,2.62098241]
[1749274984305,0.03534992,105010.0,105000.0,2.59518457]
[1749274984503,0.03534992,105010.0,105000.0,2.67098241]
[1749274985205,0.03534992,105010.0,105000.0,2.59518457]
[1749274987576,0.03534992,105010.0,105000.0,2.67098241]